Cogmind - Beta 13 @@@ ROGUE MODE // 2024.06.13 @ 11:54:39 Player: JackZewap Result: Destroyed by Y-54 Guardian with Flak Gun Performance ------------- Evolutions (3) 1500 Regions Visited (5) 1000 Robots Destroyed (93) 465 Value Destroyed (2729) 2729 Prototype IDs (1) 20 Alien Tech Used (0) 0 Bonus (135) 135 TOTAL SCORE: 5849 Bonus ------- High Alert Combat Kills 135 Cogmind --------- Core Integrity 0/700 Matter 255/300 Energy 95/100 System Corruption 0% Temperature Cool (12) Movement Core (50) Location -7/Factory Parts ------- > --- POWER (1) -------- (None) > --- PROPULSION (3) --- (None) > --- UTILITY (6) ------ Machine Analyzer Improved Melee Analysis Suite Improved Melee Analysis Suite Improved Melee Analysis Suite Improved Melee Analysis Suite Improved Melee Analysis Suite > --- WEAPON (3) ------- Mace > --- INVENTORY (5) ---- Large Matter Pod (150) Improved Melee Analysis Suite Hardened Light Armor Plating Improved Medium Armor Plating System Shield Peak State ------------ > --- POWER ------------ Improved Ion Engine > --- PROPULSION ------- Light Treads Advanced Treads Advanced Treads > --- UTILITY ---------- Medium Storage Unit Machine Analyzer Advanced Visual Processing Unit Improved Targeting Computer Improved Targeting Computer Hacking Suite > --- WEAPON ----------- Assault Rifle Enhanced Autogun Gauss Rifle > --- INVENTORY -------- Disposable Heat Sink Large Matter Pod Light Armor Plating System Shield Authchip [Armor] Mace Great Maul Explosive Trap [Rating: 33] Favorites ----------- Power Ion Engine Engine Ion Engine Propulsion Light Treads Treads Light Treads Leg Aluminum Leg Wheel Compact Wheel Flight Unit VTOL Module Utility Medium Storage Unit Device Improved Heat Sink Storage Medium Storage Unit Processor Machine Analyzer Hackware Hacking Suite Protection Light Armor Plating Weapon Light Cannon Energy Gun Particle Gun Ballistic Gun Enhanced Autogun Ballistic Cannon Light Cannon Special Weapon Plasma Cutter Impact Weapon Mace Build | -11 -10 -10 -9 -8 -7 ------- Run | Yrd Mat Min Mat Mat Fac Slots Evolved 6 | . . . 2 2 2 Power . | . . . . . . Propulsion 1 | . . . . . 1 Utility 4 | . . . 2 1 1 Weapon 1 | . . . . 1 . Parts Attached 80 | 6 6 3 27 18 20 Power 6 | 1 1 . 3 . 1 Engine 6 | 1 1 . 3 . 1 Core . | . . . . . . Reactor . | . . . . . . Propulsion 18 | 2 . . 10 3 3 Treads 13 | 2 . . 7 3 1 Leg 3 | . . . 2 . 1 Wheel 1 | . . . 1 . . Hover . | . . . . . . Flight 1 | . . . . . 1 Utility 27 | 1 2 2 7 6 9 Device 2 | . 1 1 . . . Storage 3 | 1 1 . 1 . . Processor 11 | . . 1 1 4 5 Hackware 2 | . . . 1 . 1 Protection 9 | . . . 4 2 3 Artifact . | . . . . . . Weapon 29 | 2 3 1 7 9 7 Energy Gun 1 | . 1 . . . . Energy Cannon . | . . . . . . Ballistic Gun 15 | 2 . . 4 9 . Ballistic Cannon 6 | . 2 1 3 . . Launcher . | . . . . . . Special Weapon 1 | . . . . . 1 Impact Weapon 6 | . . . . . 6 Slashing Weapon . | . . . . . . Piercing Weapon . | . . . . . . Special Melee Weapon . | . . . . . . Unidentified Prototypes 1 | . . . . 1 . Parts Lost 30 | . 1 . 7 5 17 Power 3 | . 1 . 1 . 1 Propulsion 8 | . . . 2 1 5 Utility 9 | . . . 2 2 5 Weapon 10 | . . . 2 2 6 Highest Loss Streak 10 | . 1 . 4 2 10 To Critical Strikes . | . . . . . . Average Slot Usage (%) 92 | . 96 100 92 97 63 Engine 9 | . 13 14 8 9 1 Treads 16 | . 28 28 7 18 3 Leg 3 | . . . 12 . . Device 4 | . 11 13 . . . Storage 10 | . 14 14 11 9 5 Processor 14 | . . . 12 29 30 Hackware 1 | . . . 6 . . Protection 4 | . . . 9 6 2 Ballistic Gun 8 | . 5 . 5 24 2 Ballistic Cannon 13 | . 22 28 15 . . Impact Weapon 1 | . . . . . 11 Naked Turns . | . . . . . . Heaviest Build 36 | 12 22 26 32 31 36 Greatest Support 64 | 40 40 40 44 44 64 Greatest Overweight (x) 5 | . . . 3 . 5 Average Overweight (x) . | . . . . . 2 Largest Inventory Capacity 10 | 8 10 10 10 10 10 Average Capacity 9 | 6 9 10 10 10 8 Most Carried 10 | 1 9 10 10 10 9 Average Carried 8 | . 6 9 9 9 5 Final Capacity 10 | 8 10 10 10 10 5 Final Carried 10 | 1 9 10 10 10 5 Class Distribution -------------------- 52% | Mutant 23% | Scavenger-Mutant 13% | Scavenger-Gunner 4% | Scavenger-Tank 3% | Gladiator Dominant Class ---------------- Mutant | -10/Materials Mutant | -10/Mines Scavenger-Mutant | -9/Materials Scavenger-Gunner | -8/Materials Mutant | -7/Factory Resources | -11 -10 -10 -9 -8 -7 ----------- Run | Yrd Mat Min Mat Mat Fac Matter Collected 2730 | 223 387 247 615 1126 132 Remotely . | . . . . . . Salvage Created 3204 | . 389 159 801 1464 391 Parts 176 | . 34 10 45 75 12 Haulers Intercepted 3 | . . . 1 2 . Recyclers Shooed 1 | . . . . 1 . Parts Field Recycled . | . . . . . . Retrieved Matter . | . . . . . . Parts Self-Destructed . | . . . . . . Prevented . | . . . . . . Kills | -11 -10 -10 -9 -8 -7 ------- Run | Yrd Mat Min Mat Mat Fac Combat Hostiles Destroyed 64 | . 9 5 15 25 10 Melee 7 | . . . . . 7 Guns 35 | . 2 . 8 24 1 Cannons 18 | . 7 4 7 . . AOE 2 | . . 1 . 1 . Classes Destroyed 13 | . 6 1 4 2 . Worker 5 | . . . 3 2 . Builder 4 | . . 1 2 1 . Hauler 3 | . . . 1 2 . Recycler 5 | . 1 1 2 1 . Mechanic 1 | . 1 . . . . Operator 4 | . 1 . 2 1 . Watcher 7 | . 3 . 2 1 1 Swarmer 14 | . 3 3 . 4 4 Grunt 35 | . 6 2 10 13 4 Brawler 2 | . . . 1 . 1 Duelist 1 | . . . . 1 . Sentry 10 | . . . 4 5 1 Hunter 2 | . . . . 2 . Best Kill Streak 9 | . 5 3 9 5 5 Combat Bots Only 5 | . 3 3 3 5 5 Max Kills in Single Turn 5 | . 2 2 5 2 1 Gunslinging 1 | . . . . 1 . Exploded 1 | . . 1 . 1 . Melee 1 | . . . . . 1 Uniques/NPCs Destroyed . | . . . . . . Combat | -11 -10 -10 -9 -8 -7 -------- Run | Yrd Mat Min Mat Mat Fac Hostile Shots Fired 612 | . 60 13 98 120 321 Missed 197 | . 14 2 31 37 113 Damage Taken 5746 | . 545 139 1029 1608 2425 Core 1257 | . 136 36 161 223 701 Absorbed by Shields . | . . . . . . Core Remaining (%) 62 | 100 . 31 59 59 . Volleys Fired 206 | . 36 12 67 84 7 Largest 3 | . 2 2 2 3 3 Hottest 83 | . 70 83 83 73 73 Shots Fired 463 | . 72 24 133 220 14 Gun 300 | . 16 . 50 220 14 Cannon 163 | . 56 24 83 . . Launcher . | . . . . . . Special . | . . . . . . Kinetic 463 | . 72 24 133 220 14 Thermal . | . . . . . . Explosive . | . . . . . . Electromagnetic . | . . . . . . Robot Hit Streak 16 | . 5 4 9 16 5 Robot Miss Streak 6 | . 4 2 5 6 1 Penetration Max . | . . . . . . Secondary Targets 4 | . . . . 4 . Max Gunslinging Chain 1 | . . . . 1 . Shots Hit Robots 318 | . 38 12 80 150 38 Core Hits 135 | . 19 8 35 64 9 Critical Kills 3 | . . 1 1 . 1 Critical Parts Destroyed 8 | . . . 2 3 3 Critical Strikes 13 | . 1 1 4 3 4 Destroy 7 | . . 1 3 3 . Blast 2 | . 1 . 1 . . Smash 4 | . . . . . 4 Melee Attacks 42 | . . . . . 42 Impact 42 | . . . . . 42 Slashing . | . . . . . . Piercing . | . . . . . . Sneak Attacks . | . . . . . . Combat Hostiles . | . . . . . . Follow-up Attacks 8 | . . . . . 8 Damage Inflicted 6683 | . 716 342 1876 2469 1280 Guns 3133 | . 155 . 454 2357 167 Cannons 1877 | . 561 285 1031 . . Explosions 560 | . . 57 391 112 . Melee 1113 | . . . . . 1113 Ramming . | . . . . . . Kinetic 5010 | . 716 285 1485 2357 167 Thermal 169 | . . 57 . 112 . Explosive 391 | . . . 391 . . Electromagnetic . | . . . . . . Impact 1113 | . . . . . 1113 Slashing . | . . . . . . Piercing . | . . . . . . Highest Corruption 4 | . . . 4 . . Average Corruption 4 | . . . 4 . . Corruption Purged . | . . . . . . Corruption Blocked . | . . . . . . Effects 8 | . . . 8 . . Matter Fused 3 | . . . 3 . . Heat Flow Errors 1 | . . . 1 . . Parts Rejected 1 | . . . 1 . . Data Loss (minor) 1 | . . . 1 . . Data Loss (major) 1 | . . . 1 . . Alerts 1 | . . . 1 . . Overload Shots . | . . . . . . Overflow Damage 251 | . . . 53 . 198 Projectiles 13 | . . . 13 . . Explosions 40 | . . . 40 . . Melee 198 | . . . . . 198 Knockbacks 19 | . 6 4 7 . 2 Impact 2 | . . . . . 2 Kinetic 16 | . 6 3 7 . . Secondary 1 | . . 1 . . . Self-Inflicted Damage 364 | . . 28 79 257 . Shots 5 | . . 1 1 3 . Rammed 1 | . . . 1 . . Targets Rammed 1 | . . . 1 . . Kicked . | . . . . . . Crushed . | . . . . . . Highest Temperature 239 | . 4 5 239 181 25 Average Temperature 48 | . 2 3 70 39 10 Received Heat Transfer 1866 | . 234 27 339 468 798 Siege Activations . | . . . . . . Robots Corrupted . | . . . . . . Combat Hostiles . | . . . . . . Parts Fried 4 | . . . . . 4 Impact Corruptions 11 | . . . . . 11 Robots Melted . | . . . . . . Combat Hostiles . | . . . . . . Parts Melted . | . . . . . . Heat Transferred 100 | . . 50 . 50 . Parts Sabotaged . | . . . . . . Parts Stolen . | . . . . . . Parts Stripped . | . . . . . . Power Chain Reactions . | . . . . . . Alert | -11 -10 -10 -9 -8 -7 ------- Run | Yrd Mat Min Mat Mat Fac Peak Influence 688 | . 270 100 341 688 442 Initial 312 | . . 47 39 143 312 Average 197 | . 131 46 116 391 341 Maximum Alert Level 2 | . 1 . 1 2 2 Low Security (%) 56 | 100 71 100 79 12 . Level 1 31 | . 28 . 20 46 80 Level 2 12 | . . . . 41 19 Level 3 . | . . . . . . Level 4 . | . . . . . . Level 5 . | . . . . . . High Security . | . . . . . . Max Security . | . . . . . . Squads Dispatched 14 | . 1 . 5 4 4 Investigation 5 | . . . 1 3 1 Extermination . | . . . . . . Reinforcement 9 | . 1 . 4 1 3 Assault . | . . . . . . Garrison . | . . . . . . Intercept . | . . . . . . Searches Triggered . | . . . . . . Construction Impeded 1 | . . . 1 . . Haulers Reinforced 1 | . . . . . 1 Active Scanning Responses . | . . . . . . Cargo Convoy Interrupts . | . . . . . . Stealth | -11 -10 -10 -9 -8 -7 --------- Run | Yrd Mat Min Mat Mat Fac Distress Signals 7 | . 1 . 3 2 1 Communications Jammed . | . . . . . . Distress Signals . | . . . . . . Times Spotted 93 | . 13 5 24 34 17 Peak Tracking Total 8 | . 3 3 5 6 8 Tactical Retreats 5 | . . . 1 2 2 Traps | -11 -10 -10 -9 -8 -7 ------- Run | Yrd Mat Min Mat Mat Fac Traps Triggered 2 | . . . . 2 . Indirectly . | . . . . . . Trap Hack Attempts . | . . . . . . Triggered . | . . . . . . Disarmed . | . . . . . . Reprogrammed . | . . . . . . Reused 1 | . . . . . 1 Traps Extracted . | . . . . . . Installed 2 | . . . . 1 1 Triggered 1 | . . . . . 1 Most Traps Carried 4 | . . 4 4 3 1 Machines | -11 -10 -10 -9 -8 -7 ---------- Run | Yrd Mat Min Mat Mat Fac Machines Disabled 10 | . 2 1 3 4 . Max in Single Turn 3 | . 1 1 1 3 . Machines Repaired . | . . . . . . Machines Dismantled . | . . . . . . Machines Sabotaged . | . . . . . . Overloaded Fab Kills . | . . . . . . Hacking | -11 -10 -10 -9 -8 -7 --------- Run | Yrd Mat Min Mat Mat Fac Machines Accessed 12 | . 4 . 2 4 2 Terminals 9 | . 4 . 1 3 1 Fabricators . | . . . . . . Repair Stations 1 | . . . . . 1 Recycling Units 2 | . . . 1 1 . Scanalyzers . | . . . . . . Garrison Access . | . . . . . . Total Hacks 33 | . 10 . 5 14 4 Successful 16 | . 3 . 4 8 1 Failed 17 | . 7 . 1 6 3 Catastrophic 1 | . . . . . 1 Database Lockouts . | . . . . . . Manual 21 | . 8 . 1 12 . Terminals 27 | . 10 . 3 12 2 Fabricators . | . . . . . . Repair Stations 2 | . . . . . 2 Recycling Units 4 | . . . 2 2 . Scanalyzers . | . . . . . . Garrison Access . | . . . . . . Terminal Hacks 8 | . 2 . 2 3 1 Robot Analysis 4 | . . . 1 3 . Open DSF 1 | . . . . . 1 Alert Level 1 | . 1 . . . . Locate Traps 1 | . 1 . . . . Hauler Manifests 1 | . . . 1 . . Fabricator Hacks . | . . . . . . Repair Station Hacks . | . . . . . . Recycling Unit Hacks 2 | . . . 1 1 . Retrieve Matter 1 | . . . 1 . . Retrieve Components 1 | . . . . 1 . Scanalyzer . | . . . . . . Garrison Access Hacks . | . . . . . . Unauthorized Hacks 6 | . 1 . 1 4 . Terminals 5 | . 1 . 1 3 . Botnet 5 | . 1 . 1 3 . Fabricators . | . . . . . . Repair Stations . | . . . . . . Recycling Units 1 | . . . . 1 . Reject 1 | . . . . 1 . Scanalyzers . | . . . . . . Garrison Access . | . . . . . . Data Cores Recovered . | . . . . . . Used . | . . . . . . Hacking Detections 11 | . 4 . 2 3 2 Full Trace Events 3 | . . . 1 1 1 Feedback Events . | . . . . . . Feedback Blocked . | . . . . . . Robot Schematics Acquired . | . . . . . . Robots Built . | . . . . . . Authchips . | . . . . . . Time . | . . . . . . Total Robot Build Rating . | . . . . . . Part Schematics Acquired . | . . . . . . Parts Built . | . . . . . . Authchips . | . . . . . . Time . | . . . . . . Total Part Build Rating . | . . . . . . Parts Repaired . | . . . . . . Time . | . . . . . . Parts Recycled . | . . . . . . Recycled Matter . | . . . . . . Retrieved Matter . | . . . . . . Retrieved Components 10 | . . . . 10 . Parts Scanalyzed . | . . . . . . Part Schematics Acquired . | . . . . . . Parts Damaged . | . . . . . . Bothacking | -11 -10 -10 -9 -8 -7 ------------ Run | Yrd Mat Min Mat Mat Fac Used RIF Installer . | . . . . . . Robots Hacked . | . . . . . . Non-combat . | . . . . . . Combat . | . . . . . . Robot Hacks Applied . | . . . . . . Relay Couplers Released . | . . . . . . Fabnet Peak Effective % . | . . . . . . Robots Rewired . | . . . . . . Allies Hacked . | . . . . . . Hacks Repelled . | . . . . . . Allies | -11 -10 -10 -9 -8 -7 -------- Run | Yrd Mat Min Mat Mat Fac Total Allies . | . . . . . . Largest Group . | . . . . . . Highest-Rated Group . | . . . . . . Highest-Rated Ally . | . . . . . . Total Orders . | . . . . . . Ally Attacks . | . . . . . . Total Damage . | . . . . . . Kills . | . . . . . . Allies Corrupted . | . . . . . . Allies Melted . | . . . . . . Intel | -11 -10 -10 -9 -8 -7 ------- Run | Yrd Mat Min Mat Mat Fac Robot Analysis Total 4 | . . . 1 3 . Derelict Logs Recovered 2 | . . 2 . . . Drone Launches . | . . . . . . Drone Recoveries . | . . . . . . Exploration | -11 -10 -10 -9 -8 -7 ------------- Run | Yrd Mat Min Mat Mat Fac Turns Passed 4438 | 69 648 937 1147 1072 565 Spaces Moved 2034 | 40 286 537 420 535 216 Core 132 | 4 . . 1 . 127 Treads 1584 | 36 286 537 149 535 41 Legs 166 | . . . 164 . 2 Wheels 106 | . . . 106 . . Hover . | . . . . . . Flight 46 | . . . . . 46 Fastest Speed 50 | 50 160 160 100 145 100 Average Speed 157 | 149 160 160 157 145 180 Slowest Speed 330 | 160 160 160 240 152 330 Overloaded Moves . | . . . . . . Propulsion Burnouts . | . . . . . . Robots Hopped . | . . . . . . Cave-ins Triggered . | . . . . . . Exploration Rate (%) 38 | 4 55 85 35 46 8 Regions Visited 5 Branch Regions 1 Pre-discovered Areas 1 | . . 1 . . . Known Exits Taken 2 | . . 1 1 . . Unknown Exits Taken 3 | 1 1 . . 1 . Scrap Searched 2 | . . 2 . . . Spaces Dug 4 | . . . . . 4 Terrain Destroyed 102 | . . 23 19 56 4 Melee 4 | . . . . . 4 Projectile 10 | . . 6 4 . . AOE 88 | . . 17 15 56 . Terrain Rammed . | . . . . . . Walls Destroyed . | . . . . . . Machines Disabled . | . . . . . . Actions | -11 -10 -10 -9 -8 -7 --------- Run | Yrd Mat Min Mat Mat Fac Total 2838 | 47 404 594 779 696 318 Wait 393 | 1 69 29 227 40 27 Move 2029 | 39 285 536 419 534 216 Hop . | . . . . . . Pick Up 34 | 1 4 6 13 6 4 Fast Attach 46 | 6 6 1 12 9 12 Attach 19 | . . 1 7 3 8 Detach 17 | . 4 1 5 1 6 Swap 15 | . . 1 8 6 . Drop 44 | . . 7 20 12 5 Fire 206 | . 36 12 67 84 7 Melee 31 | . . . . . 31 Ram . | . . . . . . Kick . | . . . . . . Crush 1 | . . . 1 . . Escape Stasis . | . . . . . . Rewire . | . . . . . . Trap 2 | . . . . 1 1 Miscellaneous 1 | . . . . . 1 Route ------- -11/Scrapyard -10/Materials (discovered 2 exits: *Mat / [*Min]) -10/Mines (discovered 2 exits: *Mat / [*Exi]) -9/Materials (discovered 2 exits: *Mat x2) -8/Materials -7/Factory History --------- Turn | Location | Event 47 | -11/Scrapyard | Discovered new exit (range 12) 70 | -11/Scrapyard | Entered Materials 303 | -10/Materials | Build established: Mutant 369 | -10/Materials | Discovered new exit (range 8) 464 | -10/Materials | Discovered new exit (range 3) 592 | -10/Materials | Core integrity fell below 50% 718 | -10/Materials | Entered Mines 764 | -10/Mines | Met a Derelict bent on vengeance 821 | -10/Mines | Learned 4 Materials zone layouts 1062 | -10/Mines | A weapon hastily lodged in a ceiling crevice suddenly fell to the ground 1159 | -10/Mines | Learned location of 1 exit from Materials 1160 | -10/Mines | Learned location of Storage (-7) 1373 | -10/Mines | Found a hidden stash of uninstalled traps 1565 | -10/Mines | Discovered new exit (range 9) 1620 | -10/Mines | Deemed a non-threat by the Exiles lab entrance 1620 | -10/Mines | Discovered new exit (range 5) 1648 | -10/Mines | Identified exit to Materials 1655 | -10/Mines | Entered Materials 1655 | -9/Materials | Evolved 2 slots: Utility x2 1656 | -9/Materials | Identified exit to Materials 2013 | -9/Materials | Build established: Scavenger-Mutant 2432 | -9/Materials | Lost 4 parts (1p2u1w) 2506 | -9/Materials | Lost 3 parts (2n1w) 2730 | -9/Materials | Discovered exit to Materials (range 15) 2802 | -9/Materials | Entered another Materials area 2802 | -8/Materials | Evolved 2 slots: Utility x1, Weapon x1 3261 | -8/Materials | Build established: Scavenger-Gunner 3803 | -8/Materials | Discovered new exit (range 15) 3874 | -8/Materials | Entered Factory 3874 | -7/Factory | Evolved 2 slots: Propulsion x1, Utility x1 3992 | -7/Factory | Lost 10 parts (1p2n4u3w) 4173 | -7/Factory | Core integrity fell below 50% 4412 | -7/Factory | Core integrity fell below 20% 4439 | -7/Factory | Destroyed by Y-54 Guardian with Flak Gun Last Messages --------------- 04327_ ALERT: Suspicious activity at Repair Station F003. Dispatching Investigation squad. 04341_ Dropped Disposable Heat Sink. 04341_ Acquired Hrd. Light Armor Plating. 04369_ U-05 Engineer builds a Wall. 04403_ Mace follow-up attack on W-25 Informer. 04403_ Destroyed Imp. Sensor Array. 04403_ W-25 Informer system corrupted by crushing effect. 04410_ Destroyed Imp. Hover Unit. 04410_ W-25 Informer system corrupted by crushing effect. 04411_ W-25 Informer system terminally corrupted. 04411_ Visual Processing Unit fried. 04411_ Imp. Hover Unit fried. 04411_ K-01 Serf collects debris. 04411_ VTOL Module destroyed. 04418_ ALERT: Hostiles spotted, dispatching reinforcements to Terminal F010. 04426_ Plasma Cutter destroyed. 04427_ K-01 Serf collects debris. 04432_ Mace destroyed. Map ----- +----------------------------------------------------+ | ?????????????????????????????????????????????????? | | ?????????????????????????????????????????????????? | | ?????????????????????????????????????????????????? | | ?????????????????????????????????????????????????? | | ?????????????????????????????????????????????????? | | ?????????????????????????????????????????????????? | | ?????????????????????????????????????????????????? | | ?????????????????????????????????????????????????? | | ?????????????????????????????????????????????????? | | ?????????????????????????????????????????????????? | | ??????????????????????????? ???????????????????? | | ??????????????????????????? ? ???????????????? | | ??????????????????????????? #??????????????? | | ??????????????????????????? #??????????????? | | ??????????????????????????? #??????????????? | | ??????????????????????????? +??????????????? | | ??????????????????????????# #??????????????? | | ??????????????????????????# u#??????????????? | | ??????????????????????????# #??????????????? | | ??????????????????????????# #??????????????? | | ??????????????????????????# #??????????????? | | ??????????????????????????# a#??????????????? | | ??????????????????????????# ########???????? | | ?????????????############## ??????? | | ?????????????# Y% ??????? | | ?????????????# @# ??????? | | ?????????????# # ??????? | | ?????????????# # ??????? | | ?????????????# # ########???????? | | ?????????????# ]][ # #??????????????? | | ?????????????# ][ # ##############?? | | ?????????????# ][ # ?? | | ?????????????# # ? | | ?????????????# # ? | | ?????????????# # | | ?????????????? ^ # | | ??????????????############# | | ??????????????????????????# | | ??????????????????????????# #############+?? | | ??????????????????????????# #??????????????? | | ??????????????????????????# #??????????????? | | ??????????????????????????# #??????????????? | | ??????????????????????????# #?????????"""?"" | | ??????????????????????????# #?????????"""?"" | | ??????????????????????????# #?????????"""?"" | | ??????????????????????????# ########???""??" | | ??????????????????????????# #???""??" | | ?????????"""?"""??????????# #???????? | | ?????????"""?"""??????????# #???????? | | ?????????"""?"""??????????# #???????? | +----------------------------------------------------+ Best States ------------- Heat Dissipation 39 Energy Generation 16 Energy Capacity 290 Matter Stores 300 Matter Capacity 300 Sight Range 20 Terrain Scan Density 10 Armor Coverage 300 Evasion (%) 45 Targeting Accuracy 12 Melee Accuracy 30 Recoil Reduction 3 Offensive Hacking 10 Authchip Count 1 Item Schematics ----------------- None Robot Schematics ------------------ None Fabricated ------------ Nothing Alien Tech Used ----------------- None Achievements -------------- None Challenges ------------ None Game ------ Seed StructuralChargeEngine Manual? 0 Play Time 00:29:42 Cumulative 81.5 hours Start 2024.06.13 @ 11:26:00 End 2024.06.13 @ 11:54:39 Sessions 1 Manual Loads 0 Difficulty Rogue Special Mode None Game No. 91 Rogue 85 Adventurer 6 Explorer 0 Win Type - Total 0 Types 0/0/0/0/0/0/0/0/0 Lore% 35 Gallery% 50 Achievement% 37 Wizard Run 0 Options --------- Layout 0 ASCII 0 Keyboard 1 Movement Numpad Keybinds 0 Fullscreen 0 Font 14/Smallcaps Map View 76x50 Zoom Use 0% Tactical HUD 1 Map Filters NONE Filters NONE Steam 1 RUN: 2d1abf5f-2e4e-48e3-b9ed-1f1d70a0d2d0